bitfinex-derivatives/quotes_BNBF0:USTF0_20250302
["timestamp","ask_amount","ask_price","bid_price","bid_amount"]
[1740904832265,6.77793291,608.78,608.47,2.163]
[1740904832564,6.57367411,608.77,608.47,2.163]
[1740904832765,9.55392879,608.76,608.47,2.163]
[1740904832960,2.52835788,608.75,608.47,2.163]
[1740904833265,2.52835788,608.74,608.47,2.163]
[1740904833462,2.52835788,608.73,608.47,2.163]
[1740904833666,2.52835788,608.72,608.47,2.163]
[1740904833860,2.52835788,608.71,608.47,2.163]
[1740904834063,2.52835788,608.7,608.47,2.163]
[1740904834266,2.52835788,608.69,608.47,2.163]
[1740904834465,2.52835788,608.68,608.47,2.163]
[1740904834665,2.52835788,608.67,608.47,2.163]
[1740904834862,2.52835788,608.66,608.47,2.163]
[1740904835167,2.52835788,608.65,608.47,2.163]
[1740904835369,2.98025468,608.67,608.47,2.163]
[1740904835569,2.52729752,608.66,608.47,2.163]
[1740904835761,2.52729752,608.65,608.47,2.163]
[1740904835964,1.14622556,608.65,608.47,2.163]
[1740904836767,1.14622556,608.64,608.47,2.163]
[1740904837470,1.14622556,608.63,608.38,1.607]
[1740904838272,1.14622556,608.62,608.38,1.607]
[1740904838872,1.14622556,608.61,608.38,1.607]
[1740904839574,2.52675374,608.67,608.38,1.607]
[1740904839766,1.14542266,608.6,608.38,1.607]
[1740904840473,1.71581417,608.75,608.38,1.607]
[1740904840474,1.14542266,608.59,608.38,1.607]
[1740904840675,1.14542266,608.59,608.39,2.263]
[1740904841068,2.52639558,608.71,608.39,2.263]
[1740904841270,2.52639558,608.7,608.39,2.263]
[1740904841471,2.52639558,608.69,608.39,2.263]
[1740904841674,2.52639558,608.68,608.39,2.263]
[1740904841875,2.52639558,608.67,608.39,2.263]
[1740904842076,1.83267626,608.72,608.39,2.263]
[1740904842375,1.14529782,608.67,608.39,2.263]
[1740904842574,1.62832903,608.66,608.39,2.263]
[1740904842771,1.14529782,608.67,608.39,2.263]
[1740904842975,2.52602254,608.66,608.39,2.263]
[1740904843273,1.14529782,608.66,608.39,2.263]
[1740904843870,1.14529782,608.65,608.39,2.263]
[1740904844770,1.14529782,608.64,608.39,2.263]
[1740904844968,1.14529782,608.63,608.39,2.263]
[1740904845174,2.52540676,608.62,608.39,2.263]
[1740904845370,2.52540676,608.61,608.39,2.263]
[1740904845575,2.52540676,608.6,608.39,2.263]
[1740904845774,1.43518731,608.61,608.39,2.263]
[1740904845775,2.52540676,608.59,608.39,2.263]
[1740904845974,2.52540676,608.58,608.39,2.263]
[1740904846171,2.52540676,608.57,608.39,2.263]
[1740904846375,2.52540676,608.56,608.39,2.263]
[1740904846570,2.52540676,608.55,608.39,2.263]
[1740904846779,2.52540676,608.54,608.39,2.263]
[1740904846977,2.52540676,608.53,608.39,2.263]
[1740904847183,2.52540676,608.52,608.39,2.263]
[1740904847380,2.52540676,608.51,608.39,2.263]
[1740904847678,2.52540676,608.5,608.39,2.263]
[1740904847876,2.52540676,608.49,608.39,2.263]
[1740904848075,2.52540676,608.48,608.39,2.263]
[1740904848271,4.69220059,608.54,608.39,2.263]
[1740904848474,2.52065739,608.53,608.39,2.263]
[1740904848782,1.14529782,608.48,608.39,2.263]
[1740904849173,1.14529782,608.47,608.39,2.263]
[1740904849581,1.14529782,608.46,608.39,2.263]
[1740904850182,1.14529782,608.45,608.39,2.263]
[1740904850884,1.14529782,608.44,608.39,2.263]
[1740904851984,0.89542819,608.51,608.39,2.263]
[1740904852285,2.51858672,608.52,608.39,2.263]
[1740904852679,1.14173388,608.51,608.39,2.263]
[1740904852879,2.03716207,608.51,608.39,2.263]
[1740904853180,1.14173388,608.5,608.39,2.263]
[1740904854183,1.14173388,608.49,608.39,2.263]
[1740904854587,1.14173388,608.48,608.39,2.263]
[1740904855288,1.14173388,608.47,608.39,2.263]
[1740904856090,1.14173388,608.51,608.39,2.263]
[1740904857191,1.14173388,608.5,608.39,2.263]
[1740904857791,1.14173388,608.49,608.39,2.263]
[1740904858189,1.14173388,608.54,608.39,2.263]
[1740904858594,2.03617833,608.54,608.39,2.263]
[1740904858892,1.14173388,608.53,608.39,2.263]
[1740904859087,1.14173388,608.52,608.39,2.263]
[1740904859592,1.14173388,608.51,608.39,2.263]
[1740904860193,1.14173388,608.5,608.39,2.263]
[1740904861087,1.14173388,608.54,608.39,2.263]
[1740904861788,1.14173388,608.53,608.39,2.263]
[1740904862588,1.14173388,608.52,608.39,2.263]
[1740904863189,1.71596223,608.72,608.39,2.263]
[1740904863394,2.51747323,608.71,608.39,2.263]
[1740904863596,0.89475718,608.7,608.39,2.263]
[1740904863790,0.89475718,608.7,608.29,1.607]
[1740904864095,0.89475718,608.7,608.24,2.53]
[1740904864290,1.14142611,608.69,608.24,2.53]
[1740904864694,2.03637118,608.69,608.24,2.53]
[1740904864991,1.14142611,608.68,608.24,2.53]
[1740904865593,1.14142611,608.67,608.24,2.53]
[1740904866195,1.14142611,608.66,608.24,2.53]
[1740904866591,2.03637118,608.66,608.24,2.53]
[1740904866791,1.14142611,608.65,608.24,2.53]
[1740904866993,1.14142611,608.65,608.25,2.043]
[1740904867299,2.03637118,608.65,608.25,3.651]
[1740904867599,1.14142611,608.64,608.25,3.651]
[1740904867898,3.65908723,608.64,608.25,3.651]
[1740904868198,2.51766112,608.63,608.25,3.651]
[1740904868400,3.65908723,608.63,608.25,3.651]
[1740904868600,2.51766112,608.62,608.25,3.651]
[1740904868800,1.62271605,608.61,608.25,3.651]
[1740904869202,3.65908723,608.6,608.25,3.651]
[1740904869397,2.51766112,608.59,608.25,3.651]
[1740904869602,2.51766112,608.58,608.25,3.651]
[1740904869803,2.51766112,608.57,608.25,3.651]
[1740904870102,2.51766112,608.56,608.25,3.651]
[1740904870505,3.6611141,608.55,608.25,3.651]
[1740904870697,2.51968799,608.54,608.25,3.651]
[1740904870900,1.62412622,608.53,608.25,3.651]
[1740904871101,2.51968799,608.54,608.25,3.651]
[1740904871402,1.14142611,608.52,608.25,3.651]
[1740904871596,2.51968799,608.51,608.25,3.651]
[1740904871801,3.6611141,608.51,608.25,3.651]
[1740904872098,2.51968799,608.5,608.25,3.651]
[1740904872303,2.51968799,608.49,608.25,3.651]
[1740904872502,2.51968799,608.48,608.25,3.651]
[1740904872703,2.51968799,608.47,608.25,3.651]
[1740904872903,4.03294944,608.59,608.25,3.651]
[1740904873103,1.14272598,608.47,608.25,3.651]
[1740904873706,1.14272598,608.46,608.25,3.651]
[1740904874205,1.14272598,608.45,608.25,3.651]
[1740904875205,1.14272598,608.44,608.25,3.651]
[1740904875707,1.14272598,608.43,608.25,3.651]
[1740904876103,1.14272598,608.42,608.25,3.651]
[1740904876901,1.14272598,608.41,608.25,3.651]
[1740904877909,0.97391622,608.77,608.25,3.651]
[1740904877910,2.52073372,608.47,608.25,3.651]
[1740904878110,1.71635013,608.54,608.25,3.651]
[1740904878306,2.52080263,608.53,608.25,3.651]
[1740904878504,5.49206969,608.52,608.25,3.651]
[1740904878707,2.52080263,608.51,608.25,3.651]
[1740904878906,3.66369741,608.5,608.25,3.651]
[1740904879110,2.52079192,608.49,608.25,3.651]
[1740904879311,0.89595707,608.48,608.25,3.651]
[1740904879509,2.52079192,608.49,608.25,3.651]
[1740904879811,1.14290549,608.48,608.25,3.651]
[1740904880912,1.14290549,608.47,608.25,3.651]
[1740904881609,1.14290549,608.46,608.25,3.651]
[1740904882208,1.14290549,608.45,608.25,3.651]
[1740904882810,1.14290549,608.44,608.25,3.651]
[1740904883210,2.52162337,608.49,608.25,3.651]
[1740904883407,2.52162337,608.48,608.25,3.651]
[1740904883611,4.03444179,608.59,608.25,3.651]
[1740904883812,9.52760332,608.58,608.25,3.651]
[1740904884013,6.55599307,608.57,608.25,3.651]
[1740904884214,6.55599307,608.56,608.25,3.651]
[1740904884410,3.95550468,608.55,608.25,3.651]
[1740904884612,2.52155128,608.54,608.25,3.651]
[1740904884909,2.52155128,608.53,608.25,3.651]
[1740904885112,2.52155128,608.52,608.25,2.043]
[1740904885313,2.52155128,608.51,608.25,2.043]
[1740904885514,2.52155128,608.5,608.25,2.043]
[1740904885713,2.52155128,608.49,608.25,2.043]
[1740904885914,2.52155128,608.48,608.25,2.043]
[1740904886110,0.8962292,608.48,608.25,2.043]
[1740904886413,1.14324868,608.47,608.25,2.043]
[1740904886813,0.97438393,608.76,608.25,2.043]
[1740904886814,1.14324868,608.46,608.25,2.043]
[1740904890921,1.14324868,608.45,608.25,2.043]
[1740904891514,1.14324868,608.44,608.25,2.043]
[1740904892421,1.14324868,608.43,608.25,2.043]
[1740904893217,1.14324868,608.42,608.25,2.043]
[1740904894021,1.14324868,608.41,608.25,2.043]
[1740904895023,1.14324868,608.4,608.25,2.043]
[1740904895722,1.14324868,608.39,608.25,2.043]
[1740904896418,1.14324868,608.38,608.25,2.043]
[1740904896924,8.40030364,608.53,608.19,1.608]
[1740904897223,6.56763107,608.52,608.19,1.608]
[1740904897417,6.56763107,608.51,608.19,1.608]
[1740904897621,6.56763107,608.5,608.19,1.608]
[1740904897821,6.56940987,608.49,608.19,1.608]
[1740904898018,2.52607323,608.48,608.19,1.608]
[1740904898223,2.52607323,608.47,608.19,1.608]
[1740904898421,2.52607323,608.46,608.19,1.608]
[1740904898625,5.5061131,608.45,608.19,1.608]
[1740904898824,2.52768148,608.44,608.19,1.608]
[1740904899024,2.52768148,608.43,608.19,1.608]
[1740904899224,2.52768148,608.42,608.19,1.608]
[1740904899425,2.52768148,608.41,608.19,1.608]
[1740904899626,2.52768148,608.4,608.19,1.608]
[1740904899824,2.97843162,608.41,608.19,1.608]
[1740904900022,2.52815924,608.4,608.19,1.608]
[1740904900223,2.52815924,608.39,608.2,1.711]
[1740904900420,1.14575905,608.38,608.2,1.711]
[1740904901223,1.14575905,608.37,608.2,1.711]
[1740904902029,1.14575905,608.36,608.2,1.711]
[1740904902731,1.14575905,608.35,608.2,1.711]
[1740904903229,1.14575905,608.34,608.2,1.711]
[1740904903630,1.14575905,608.33,608.2,1.711]
[1740904904627,1.14575905,608.32,608.2,1.711]
[1740904905331,1.14575905,608.31,608.2,1.711]
[1740904905926,1.14575905,608.3,608.2,1.711]
[1740904906631,4.05556183,608.51,608.2,1.711]
[1740904906935,6.5908514,608.5,608.2,1.711]
[1740904907134,6.5908514,608.49,608.2,1.711]
[1740904907334,6.5908514,608.48,608.2,1.711]
[1740904907535,6.5908514,608.47,608.21,0.577]
[1740904907735,6.5908514,608.46,608.21,0.577]
[1740904907935,6.5908514,608.45,608.21,0.577]
[1740904908135,6.5908514,608.44,608.21,0.577]
[1740904908332,6.5908514,608.43,608.21,0.577]
[1740904908635,6.5908514,608.42,608.21,0.577]
[1740904908937,6.5908514,608.41,608.21,0.577]
[1740904909130,2.53500071,608.4,608.21,0.577]
[1740904909328,2.53500071,608.39,608.21,0.577]
[1740904909534,2.53500071,608.38,608.21,0.577]
[1740904909730,5.52313898,608.37,608.21,0.577]
[1740904909936,2.53500071,608.36,608.21,0.577]
[1740904910231,2.53500071,608.35,608.21,0.577]
[1740904910436,1.14928395,608.36,608.21,0.577]
[1740904910636,1.14928395,608.34,608.21,0.577]
[1740904911435,1.14928395,608.33,608.21,0.577]
[1740904912035,1.14928395,608.32,608.21,0.577]
[1740904912534,1.14928395,608.31,608.21,0.577]
[1740904912938,1.14928395,608.3,608.21,0.577]
[1740904913531,1.14928395,608.29,608.21,0.577]
[1740904914134,4.05604584,608.46,608.21,0.577]
[1740904914338,6.59101837,608.45,608.21,0.577]
[1740904914538,6.59101837,608.44,608.21,0.577]
[1740904914739,6.59101837,608.43,608.21,0.577]
[1740904915037,6.59104861,608.42,608.21,0.577]
[1740904915238,2.53497253,608.41,608.21,0.577]
[1740904915439,2.53495122,608.4,608.21,0.577]
[1740904915639,2.53495122,608.39,608.21,0.577]
[1740904915832,2.53495122,608.38,608.21,0.577]
[1740904916036,2.53495122,608.37,608.21,0.577]
[1740904916231,2.53495122,608.36,608.21,0.577]
[1740904916436,5.52331345,608.35,608.21,0.577]
[1740904916632,2.53495122,608.34,608.21,0.577]
[1740904916836,2.53495122,608.33,608.21,0.577]
[1740904917037,1.14937009,608.33,608.21,0.577]
[1740904917839,1.14937009,608.32,608.21,0.577]
[1740904918641,1.14937009,608.31,608.21,0.577]
[1740904919340,1.14937009,608.3,608.21,0.577]
[1740904919838,1.71640656,608.55,608.21,0.577]
[1740904919839,1.14937009,608.29,608.21,0.577]
[1740904920444,5.03540204,608.57,608.21,0.577]
[1740904920644,6.59078432,608.56,608.21,0.577]
[1740904920946,6.59078432,608.55,608.21,0.577]
[1740904921147,6.59078432,608.54,608.21,0.577]
[1740904921346,6.59078432,608.53,608.21,0.577]
[1740904921548,6.59078432,608.52,608.21,0.577]
[1740904921750,6.59078432,608.51,608.22,1.608]
[1740904921945,9.57914921,608.5,608.22,1.608]
[1740904922147,6.59078432,608.49,608.22,1.608]
[1740904922349,2.98836489,608.5,608.22,1.608]
[1740904922350,6.59078432,608.48,608.22,1.608]
[1740904922649,9.57914921,608.47,608.22,1.608]
[1740904922844,6.59078432,608.46,608.22,1.608]
[1740904923146,6.59078432,608.45,608.22,1.608]
[1740904923354,6.59078432,608.44,608.22,1.608]
[1740904923550,2.53491596,608.43,608.22,1.608]
[1740904923750,2.53491596,608.42,608.22,1.608]
[1740904924047,2.53491596,608.41,608.22,1.608]
[1740904924250,2.53491596,608.4,608.22,1.608]
[1740904924451,2.53491596,608.39,608.22,1.608]
[1740904924649,2.53491596,608.38,608.22,1.608]
[1740904924850,2.53491596,608.37,608.22,1.608]
[1740904925045,2.53491596,608.36,608.22,1.608]
[1740904925249,2.53520743,608.35,608.22,1.608]
[1740904925450,2.53520743,608.34,608.22,1.608]
[1740904925653,2.98836489,608.36,608.22,1.608]
[1740904925952,3.6857209,608.35,608.22,1.608]
[1740904926156,2.53634979,608.34,608.22,1.608]
[1740904926453,3.6860851,608.33,608.22,1.608]
[1740904926654,1.14937111,608.33,608.22,1.608]
[1740904927053,4.05874137,608.6,608.22,1.608]
[1740904927054,1.14937111,608.32,608.22,1.608]
[1740904927454,1.14937111,608.31,608.22,1.608]
[1740904928251,4.05901244,608.53,608.22,1.608]
[1740904928451,6.59635579,608.52,608.22,1.608]
[1740904928755,6.59635579,608.51,608.22,1.608]
[1740904928957,6.59635579,608.5,608.22,1.608]
[1740904929150,5.15350233,608.49,608.22,1.608]
[1740904929352,2.53719133,608.48,608.22,1.608]
[1740904929554,2.53719133,608.47,608.22,1.608]
[1740904929754,2.53719133,608.46,608.22,1.608]
[1740904929954,2.53719133,608.45,608.22,1.608]
[1740904930152,2.53719133,608.44,608.22,1.608]
[1740904930357,2.99095557,608.47,608.22,1.608]
[1740904930558,1.15036753,608.43,608.22,1.608]
[1740904931558,1.15036753,608.42,608.22,1.608]
[1740904932359,1.15036753,608.41,608.22,1.608]
[1740904932755,1.62655321,608.61,608.22,1.608]
[1740904932960,6.59107365,608.6,608.23,0.577]
[1740904933161,6.59107365,608.59,608.23,0.577]
[1740904933355,6.59107365,608.58,608.23,0.577]
[1740904933557,2.53502833,608.57,608.23,0.577]
[1740904933755,2.53502833,608.56,608.23,0.577]
[1740904933960,2.53502833,608.55,608.23,0.577]
[1740904934159,2.53502833,608.54,608.23,0.577]
[1740904934361,2.53502833,608.53,608.23,0.577]
[1740904934556,5.52120852,608.52,608.23,0.577]
[1740904934758,2.5345815,608.51,608.23,0.577]
[1740904934958,2.5345815,608.5,608.23,0.577]
[1740904935159,2.98662702,608.52,608.23,0.577]
[1740904935363,1.1487027,608.5,608.23,0.577]
[1740904936263,1.1487027,608.49,608.23,0.577]
[1740904937062,1.83741076,608.6,608.23,0.577]
[1740904937262,2.53304359,608.59,608.23,0.577]
[1740904937463,2.53304359,608.58,608.23,0.577]
[1740904937663,1.83741076,608.6,608.23,0.577]
[1740904937865,1.1480385,608.57,608.23,0.577]
[1740904938560,1.1480385,608.56,608.23,0.577]
[1740904939164,1.1480385,608.55,608.23,0.577]
[1740904940160,1.62655321,608.61,608.23,0.577]
[1740904940559,1.62655321,608.61,608.24,1.609]
[1740904941064,1.14734372,608.6,608.24,1.609]
[1740904941566,1.14734372,608.59,608.24,1.609]
[1740904942461,1.62655321,608.61,608.24,1.609]
[1740904943262,1.14671772,608.6,608.24,1.609]
[1740904943861,1.62655321,608.61,608.24,1.609]
[1740904948768,1.62655321,608.61,608.25,3.855]
[1740904957870,1.62655321,608.61,608.26,1.589]
[1740904961171,1.62655321,608.61,608.27,0.577]
[1740904963074,1.62655321,608.61,608.27,2.23]
[1740904968777,1.14499382,608.6,608.27,2.23]
[1740904969076,1.14499382,608.6,608.27,4.152]
[1740904969478,1.62655321,608.61,608.27,4.152]
[1740904970877,1.14521753,608.6,608.27,4.152]
[1740904971877,1.62655321,608.61,608.27,4.152]
[1740904973274,1.14541383,608.6,608.27,4.152]
[1740904974176,1.62655321,608.61,608.27,4.152]
[1740904984089,1.62655321,608.61,608.27,5.761]
[1740904985089,1.14745755,608.6,608.27,5.761]
[1740904986287,1.14745755,608.59,608.27,5.761]
[1740904986884,1.14745755,608.58,608.27,5.761]
[1740904987693,1.14745755,608.57,608.27,5.761]
[1740904988290,1.14745755,608.56,608.27,5.761]
[1740904989393,1.62655321,608.61,608.27,5.761]
[1740904989894,1.14883485,608.6,608.27,5.761]
[1740904990292,1.14883485,608.59,608.27,5.761]
[1740904991095,1.14883485,608.58,608.27,5.761]
[1740904991694,1.14883485,608.57,608.27,5.761]
[1740904992095,1.14883485,608.56,608.27,5.761]
[1740904992899,1.62655321,608.61,608.27,5.761]
[1740904993501,1.149436,608.6,608.27,5.761]
[1740904994299,1.149436,608.59,608.27,5.761]
[1740904995100,1.149436,608.58,608.27,5.761]
[1740904995504,1.149436,608.57,608.27,5.761]
[1740904996101,1.149436,608.56,608.27,5.761]
[1740904996709,1.149436,608.55,608.27,5.761]
[1740904997305,1.62655321,608.61,608.27,5.761]
[1740904997705,1.14980825,608.6,608.27,5.761]
[1740904998205,2.53572231,608.59,608.27,5.761]
[1740904998410,2.53572231,608.58,608.27,5.761]
[1740904998702,2.53572231,608.57,608.27,5.761]
[1740904998908,2.53572231,608.56,608.27,5.761]
[1740904999103,2.53572231,608.55,608.27,5.761]
[1740904999309,2.53572231,608.54,608.27,5.761]
[1740904999509,1.63403898,608.53,608.27,5.761]
[1740904999810,1.14980825,608.54,608.27,3.531]
[1740904999811,2.53500917,608.52,608.27,3.531]
[1740905000109,1.14980825,608.54,608.27,3.531]
[1740905000305,1.14980825,608.51,608.27,3.531]
[1740905000905,1.62655321,608.61,608.27,3.531]
[1740905001101,2.53553868,608.6,608.27,3.531]
[1740905001409,1.62655321,608.61,608.27,3.531]
[1740905001604,3.68501188,608.6,608.27,3.531]
[1740905001804,1.14948895,608.6,608.27,3.531]
[1740905002410,1.14948895,608.59,608.27,3.531]
[1740905003006,1.14948895,608.59,608.27,6.454]
[1740905003407,1.14948895,608.58,608.27,6.454]
[1740905004110,1.14948895,608.57,608.27,6.454]
[1740905004911,1.14948895,608.56,608.27,6.454]
[1740905005710,1.14948895,608.55,608.27,6.454]
[1740905006111,1.62655321,608.61,608.27,6.454]
[1740905006512,2.53532438,608.6,608.27,6.454]
[1740905006713,2.53532504,608.59,608.27,6.454]
[1740905006912,1.62655321,608.61,608.27,6.454]
[1740905007114,1.14941077,608.58,608.27,6.454]
[1740905007316,6.59008612,608.57,608.27,6.454]
[1740905007517,6.59008612,608.56,608.27,6.454]
[1740905007816,6.58890873,608.55,608.27,6.454]
[1740905008016,2.5346456,608.54,608.27,6.454]
[1740905008215,2.5346456,608.53,608.27,6.454]
[1740905008411,2.5346456,608.52,608.27,6.454]
[1740905008611,2.5346456,608.51,608.27,6.454]
[1740905008818,2.98707051,608.52,608.27,6.454]
[1740905008819,2.5346456,608.5,608.27,6.454]
[1740905009116,2.5346456,608.49,608.27,4.845]
[1740905009316,2.5346456,608.48,608.27,4.845]
[1740905009517,2.5346456,608.47,608.27,4.845]
[1740905009716,2.5346456,608.46,608.27,4.845]
[1740905009918,2.5346456,608.45,608.27,4.845]
[1740905010115,2.5346456,608.44,608.27,4.845]
[1740905010417,2.98707051,608.46,608.27,2.923]
[1740905010617,3.68011475,608.45,608.27,2.923]
[1740905010819,2.53070398,608.44,608.27,2.923]
[1740905011011,1.14941077,608.45,608.27,2.923]
[1740905011214,2.53071106,608.44,608.27,2.923]
[1740905011413,1.14941077,608.44,608.27,2.923]
[1740905012119,1.14941077,608.43,608.27,2.923]
[1740905012418,2.52874023,608.42,608.27,2.923]
[1740905012614,2.52874023,608.41,608.27,2.923]
[1740905012814,2.52874023,608.4,608.27,2.923]
[1740905013016,2.98380655,608.41,608.27,2.923]
[1740905013419,0.89895533,608.4,608.27,2.923]
[1740905013720,0.89895533,608.39,608.27,2.923]
[1740905014018,1.63024977,608.38,608.27,2.923]
[1740905014713,2.98380655,608.41,608.27,2.923]
[1740905014919,1.63021216,608.4,608.27,2.923]
[1740905015121,2.52914102,608.4,608.27,2.346]
[1740905015719,2.52914102,608.39,608.27,2.346]
[1740905016020,2.52914102,608.38,608.27,2.346]
[1740905016215,2.52796203,608.37,608.23,1.875]
[1740905016415,1.14941077,608.41,608.23,1.875]
[1740905016621,1.14941077,608.36,608.23,1.875]
[1740905017021,1.14941077,608.35,608.23,1.875]
[1740905018014,1.14941077,608.34,608.23,1.875]
[1740905018617,6.57216128,608.5,608.23,1.875]
[1740905018820,2.52730629,608.49,608.23,1.875]
[1740905019021,2.52730629,608.48,608.23,1.875]
[1740905019223,2.52730629,608.47,608.23,1.875]
[1740905019421,2.52730629,608.46,608.23,1.875]
[1740905019623,5.50633395,608.45,608.23,1.875]
[1740905019825,6.56995128,608.44,608.23,1.875]
[1740905020125,2.52730629,608.43,608.23,1.875]
[1740905020318,5.50633395,608.42,608.23,1.875]
[1740905020617,2.52730629,608.41,608.23,1.875]
[1740905020822,2.52730629,608.4,608.23,1.875]
[1740905021023,2.52730629,608.39,608.23,1.875]
[1740905021223,2.52730629,608.38,608.23,1.875]
[1740905021424,2.97902766,608.4,608.23,1.875]
[1740905021725,2.5235626,608.39,608.23,1.875]
[1740905022025,3.66926933,608.38,608.23,1.875]
[1740905022224,1.1456736,608.38,608.23,1.875]
[1740905022621,1.1456736,608.37,608.23,1.875]
[1740905023421,1.1456736,608.36,608.23,1.875]
[1740905024128,2.52287647,608.47,608.23,1.875]
[1740905024426,1.62616242,608.46,608.23,1.875]
[1740905024623,1.14352711,608.45,608.23,1.875]
[1740905025225,1.14352711,608.44,608.23,1.875]
[1740905026020,1.71623726,608.61,608.23,1.875]
[1740905026021,1.14352711,608.43,608.23,1.875]
[1740905026721,1.14352711,608.42,608.23,1.875]
[1740905027520,1.14352711,608.41,608.23,1.875]
[1740905028627,2.5215511,608.51,608.23,1.875]
[1740905028826,2.5215511,608.5,608.23,1.875]
[1740905029028,2.5215511,608.49,608.23,1.875]
[1740905029225,2.5215511,608.48,608.23,1.875]
[1740905029425,2.5215511,608.47,608.23,1.875]
[1740905029622,3.66446856,608.46,608.23,1.875]
[1740905029927,1.62532129,608.45,608.23,1.875]
[1740905030323,4.03266926,608.59,608.23,1.875]
[1740905030324,1.14291746,608.44,608.23,1.875]
[1740905030829,1.14291746,608.43,608.23,1.875]
[1740905031826,1.14291746,608.42,608.23,1.875]
[1740905032223,1.14291746,608.41,608.23,1.875]
[1740905032826,1.14291746,608.4,608.23,1.875]
[1740905034027,1.14291746,608.39,608.23,1.875]
[1740905034428,1.14291746,608.38,608.23,1.875]
[1740905034932,1.14291746,608.38,608.22,2.391]
[1740905035133,2.5188351,608.52,608.22,2.391]
[1740905035328,2.5188351,608.51,608.22,2.391]
[1740905035527,2.5188351,608.5,608.22,2.391]
[1740905035729,2.5188351,608.49,608.22,2.391]
[1740905035928,2.5188351,608.48,608.22,2.391]
[1740905036133,2.5188351,608.47,608.22,2.391]
[1740905036433,2.5188351,608.46,608.22,2.391]
[1740905036630,0.89522665,608.46,608.22,2.391]
[1740905036831,1.14190203,608.47,608.22,2.391]
[1740905037234,1.14190203,608.45,608.22,2.391]
[1740905037937,1.14190203,608.44,608.23,2.141]
[1740905039130,1.14190203,608.43,608.23,2.141]
[1740905040039,1.14190203,608.51,608.23,2.141]
[1740905040638,1.14190203,608.5,608.23,2.141]
[1740905041838,1.14190203,608.49,608.23,2.141]
[1740905042244,1.14190203,608.48,608.23,2.141]
[1740905043149,1.14190203,608.47,608.23,2.141]
[1740905043745,1.14190203,608.46,608.23,2.141]
[1740905045045,2.51975423,608.53,608.23,2.141]
[1740905045347,1.83335406,608.58,608.23,2.141]
[1740905045547,2.51989208,608.57,608.23,2.141]
[1740905045747,3.66241772,608.57,608.23,2.141]
[1740905045946,2.51989208,608.56,608.23,2.141]
[1740905046147,2.51989208,608.55,608.23,2.141]
[1740905046347,2.51989208,608.54,608.23,2.141]
[1740905046544,1.62425871,608.53,608.23,2.141]
[1740905046744,2.51964017,608.52,608.23,2.141]
[1740905047047,2.51964017,608.51,608.23,2.141]
[1740905047250,3.66216581,608.5,608.23,2.141]
[1740905047443,2.51964017,608.49,608.23,4.043]
[1740905047649,2.51964017,608.48,608.23,4.043]
[1740905047947,2.51964017,608.47,608.23,4.043]
[1740905048950,1.14252564,608.46,608.23,4.043]
[1740905049150,2.0379071,608.46,608.23,4.043]
[1740905049348,1.14252564,608.45,608.23,4.043]
[1740905050056,1.71632191,608.54,608.23,4.043]
[1740905050057,1.14252564,608.44,608.23,4.043]
[1740905050751,1.14252564,608.43,608.23,4.043]
[1740905051153,1.14252564,608.42,608.23,4.043]
[1740905051354,3.66272871,608.42,608.23,4.043]
[1740905051552,1.14252564,608.41,608.23,4.043]
[1740905052353,1.14252564,608.4,608.23,4.043]
[1740905053450,1.14252564,608.39,608.23,4.043]
[1740905053856,2.52114892,608.57,608.23,4.043]